Cogmind - Beta 17 @@@ ROGUE MODE // 2026.07.28 @ 20:57:38 Player: PE-P51 Result: Destroyed by NS-LKT(R) with Subdweller Shrapnel Launcher Performance ------------- Evolutions (0) 0 Regions Visited (2) 400 Robots Destroyed (15) 75 Value Destroyed (358) 358 Prototype IDs (15) 300 Alien Tech Used (0) 0 Bonus (63) 63 TOTAL SCORE: 1196 Bonus ------- Follower Combat Kills 63 Cogmind --------- Core Integrity 0/250 Matter 169/300 Energy 250/250 System Corruption 0% Temperature Cool (0) Movement Treading (160) Location -10/Subcaves Parts ------- > --- POWER (1) -------- Ion Engine > --- PROPULSION (2) --- Light Treads > --- UTILITY (2) ------ Small Storage Unit V3-11A's Pendant > --- WEAPON (2) ------- Medium Laser > --- INVENTORY (8) ---- Makeshift Power Source Makeshift Light Armor Plating Powered Cannon Mining Laser Peak State ------------ > --- POWER ------------ Ion Engine > --- PROPULSION ------- Light Treads Light Treads > --- UTILITY ---------- Small Storage Unit Makeshift Light Armor Plating > --- WEAPON ----------- Battle Cannon Battle Cannon > --- INVENTORY -------- Light Ion Engine Makeshift Leg Makeshift System Restoration Module EM Pulse Gun Medium Laser Powered Cannon Mining Laser [Rating: 14] Favorites ----------- Power Ion Engine Engine Ion Engine Propulsion Light Treads Treads Light Treads Leg Aluminum Leg Utility Small Storage Unit Device Improved Heat Sink Storage Small Storage Unit Protection Makeshift Light Armor Plating Weapon Battle Cannon Energy Gun Medium Laser Ballistic Gun Light Assault Rifle Ballistic Cannon Battle Cannon Special Weapon Mining Laser Build | -11 -10 -10 ------- Run | Yrd Mat Sub Slots Evolved . | . . . Power . | . . . Propulsion . | . . . Utility . | . . . Weapon . | . . . Parts Attached 13 | . 3 10 Power 2 | . . 2 Engine 2 | . . 2 Core . | . . . Reactor . | . . . Propulsion 4 | . 2 2 Treads 2 | . . 2 Leg 2 | . 2 . Wheel . | . . . Hover . | . . . Flight . | . . . Utility 3 | . 1 2 Device 2 | . 1 1 Storage . | . . . Processor . | . . . Hackware . | . . . Protection 1 | . . 1 Artifact . | . . . Weapon 4 | . . 4 Energy Gun 1 | . . 1 Energy Cannon . | . . . Ballistic Gun . | . . . Ballistic Cannon 2 | . . 2 Launcher . | . . . Special Weapon 1 | . . 1 Impact Weapon . | . . . Slashing Weapon . | . . . Piercing Weapon . | . . . Special Melee Weapon . | . . . Unidentified Prototypes 1 | . . 1 Parts Lost 5 | . . 5 Power . | . . . Propulsion 3 | . . 3 Utility . | . . . Weapon 2 | . . 2 Highest Loss Streak 2 | . . 2 To Critical Strikes . | . . . Average Backups 6 | 6 7 6 Power 1 | 1 1 1 Propulsion 1 | 4 4 1 Utility . | . . . Weapon 2 | 1 2 2 Tool/Special . | . . . Unused Backups 10 | . 4 6 Power 2 | . . 2 Propulsion 5 | . 4 1 Utility 1 | . . 1 Weapon 2 | . . 2 Tool/Special . | . . . Average Slot Usage (%) 99 | . 89 99 Engine 14 | . 14 14 Treads 21 | . . 23 Leg 6 | . 28 4 Device 9 | . 4 9 Storage 14 | . 14 14 Protection 4 | . . 4 Energy Gun 7 | . 14 6 Ballistic Gun 4 | . 14 3 Ballistic Cannon 15 | . . 16 Peak Build Rating 14 | 6 9 14 Average Rating 11 | 6 6 11 On Entrance 7 | 6 6 9 Avg Prop Armor Cover (%) . | . . . Naked Turns . | . . . Heaviest Build 20 | 10 11 20 Greatest Support 40 | 20 20 40 Greatest Overweight (x) . | . . . Average Overweight (x) . | . . . Largest Inventory Capacity 8 | 8 8 8 Average Capacity 8 | 8 8 8 Most Carried 8 | 7 8 8 Average Carried 7 | 6 7 6 Final Capacity 8 | 8 8 8 Final Carried 8 | 7 8 5 Class Distribution -------------------- 100% | Mutant Dominant Class ---------------- Mutant | -10/Materials Mutant | -10/Subcaves Resources | -11 -10 -10 ----------- Run | Yrd Mat Sub Matter Collected 582 | 206 45 331 Remotely . | . . . Salvage Created 304 | 26 143 135 Parts 20 | 1 8 11 Haulers Intercepted . | . . . Recyclers Shooed . | . . . Parts Field Recycled . | . . . Retrieved Matter . | . . . Parts Self-Destructed 8 | . . 8 Prevented . | . . . Parts Restored . | . . . Kills | -11 -10 -10 ------- Run | Yrd Mat Sub Combat Hostiles Destroyed 14 | . 5 9 Guns 5 | . 5 . Cannons 9 | . . 9 Classes Destroyed 4 | 1 2 1 Tunneler 1 | 1 . . Swarmer 7 | . 3 4 Grunt 2 | . 2 . Subdweller 5 | . . 5 Best Kill Streak 4 | 1 4 3 Combat Bots Only 4 | . 4 3 Max Kills in Single Turn 1 | 1 1 1 Gunslinging . | . . . Exploded . | . . . Melee . | . . . Uniques/NPCs Destroyed . | . . . Combat | -11 -10 -10 -------- Run | Yrd Mat Sub Hostile Shots Fired 91 | . 23 68 Missed 30 | . 7 23 Hits 61 | . 16 45 Projectile 61 | . 16 45 AOE 1 | . . 1 Critical Strikes 2 | . . 2 Damage Taken 1063 | . 180 883 Core 252 | . 52 200 Absorbed by Shields . | . . . Core Remaining (%) 100 | 100 . . Volleys Fired 79 | 6 15 58 Largest 2 | 2 2 2 Hottest 133 | 60 60 133 Shots Fired 130 | 12 30 88 Gun 50 | 12 30 8 Cannon 77 | . . 77 Launcher . | . . . Special 3 | . . 3 Kinetic 100 | 6 15 79 Thermal 30 | 6 15 9 Explosive . | . . . Electromagnetic . | . . . Robot Hit Streak 10 | 3 7 10 Robot Miss Streak 5 | 3 4 5 Penetration Max . | . . . Secondary Targets . | . . . Shots Hit Robots 70 | 5 20 45 Core Hits 25 | 2 9 14 Critical Kills . | . . . Critical Parts Destroyed . | . . . Critical Strikes 2 | . . 2 Blast 2 | . . 2 Melee Attacks . | . . . Impact . | . . . Slashing . | . . . Piercing . | . . . Sneak Attacks . | . . . Combat Hostiles . | . . . Follow-up Attacks . | . . . Damage Inflicted 1140 | 43 195 902 Guns 244 | 43 195 6 Cannons 896 | . . 896 Explosions . | . . . Melee . | . . . Ramming . | . . . Kinetic 1007 | 22 83 902 Thermal 133 | 21 112 . Explosive . | . . . Electromagnetic . | . . . Impact . | . . . Slashing . | . . . Piercing . | . . . Highest Corruption . | . . . Average Corruption . | . . . Corruption Purged . | . . . Corruption Blocked . | . . . Overload Shots . | . . . Overflow Damage 19 | . . 19 Projectiles 19 | . . 19 Explosions . | . . . Melee . | . . . Knockbacks 6 | . . 6 Impact . | . . . Kinetic 6 | . . 6 Secondary . | . . . Self-Inflicted Damage . | . . . Shots . | . . . Rammed . | . . . Targets Rammed . | . . . Kicked . | . . . Crushed . | . . . Highest Temperature 143 | 40 143 . Average Temperature 59 | 19 72 . Received Heat Transfer 204 | . 81 123 Siege Activations . | . . . Martial Activations . | . . . Shielding Activations . | . . . Robots Disrupted . | . . . Combat Hostiles . | . . . Robots Corrupted . | . . . Combat Hostiles . | . . . Parts Fried . | . . . Impact Corruptions . | . . . Robots Melted . | . . . Combat Hostiles . | . . . Parts Melted 1 | . 1 . Heat Transferred 300 | 50 250 . Parts Sabotaged . | . . . Parts Stolen . | . . . Parts Stripped . | . . . Power Chain Reactions . | . . . Alert | -11 -10 -10 ------- Run | Yrd Mat Sub Maximum Alert Level . | . . . Low Security (%) 100 | 100 100 . Level 1 . | . . . Level 2 . | . . . Level 3 . | . . . Level 4 . | . . . Level 5 . | . . . High Security . | . . . Max Security . | . . . Peak Influence 115 | 5 115 . Initial . | . . . Average 40 | . 58 . Influence Increases 304 | 5 169 130 Destroy 0b10 Robot/C 200 | . 100 100 Destroy 0b10 Robot/NC 5 | 5 . . Destroy Leader 40 | . 20 20 Allied During Kill 10 | . . 10 Successful Hack 4 | . 4 . Lose Combat Pursuer 45 | . 45 . Influence Decreases 304 | 5 54 245 Entered New Map 56 | . . 56 Time Decay 218 | 5 54 159 Lost Part 10 | . . 10 Lost Ally 20 | . . 20 Squads Dispatched . | . . . Investigation . | . . . Extermination . | . . . Reinforcement . | . . . Assault . | . . . Garrison . | . . . Intercept . | . . . Searches Triggered . | . . . Construction Impeded . | . . . Haulers Reinforced . | . . . Active Scanning Responses . | . . . Cargo Convoy Interrupts . | . . . Stealth | -11 -10 -10 --------- Run | Yrd Mat Sub Distress Signals . | . . . Communications Jammed . | . . . Distress Signals . | . . . Times Spotted 28 | . 7 21 Peak Tracking Total 5 | . 5 3 Tactical Retreats 2 | . 2 . Traps | -11 -10 -10 ------- Run | Yrd Mat Sub Traps Triggered 2 | . . 2 Indirectly . | . . . Trap Hack Attempts . | . . . Triggered . | . . . Disarmed . | . . . Reprogrammed . | . . . Reused . | . . . Traps Extracted . | . . . Installed . | . . . Triggered . | . . . Machines | -11 -10 -10 ---------- Run | Yrd Mat Sub Machines Disabled 1 | . . 1 Max in Single Turn 1 | . . 1 Machines Repaired . | . . . Machines Dismantled . | . . . Machines Sabotaged . | . . . Overloaded Fab Kills . | . . . Hacking | -11 -10 -10 --------- Run | Yrd Mat Sub Machines Accessed 3 | . 1 2 Terminals 1 | . 1 . Fabricators . | . . . Repair Stations . | . . . Recycling Units . | . . . Scanalyzers . | . . . Garrison Access . | . . . Total Hacks 17 | . 4 13 Successful 15 | . 2 13 Failed 2 | . 2 . Catastrophic . | . . . Database Lockouts . | . . . Manual 2 | . 2 . Terminals 4 | . 4 . Fabricators . | . . . Repair Stations . | . . . Recycling Units . | . . . Scanalyzers . | . . . Garrison Access . | . . . Terminal Hacks 15 | . 2 13 Record 12 | . . 12 Robot Analysis 1 | . 1 . Hauler Manifests 1 | . 1 . Proto ID Catalog 1 | . . 1 Fabricator Hacks . | . . . Repair Station Hacks . | . . . Recycling Unit Hacks . | . . . Scanalyzer . | . . . Garrison Access Hacks . | . . . Unauthorized Hacks . | . . . Terminals . | . . . Fabricators . | . . . Repair Stations . | . . . Recycling Units . | . . . Scanalyzers . | . . . Garrison Access . | . . . Data Cores Recovered . | . . . Used . | . . . Hacking Detections 1 | . 1 . Full Trace Events . | . . . Feedback Events . | . . . Feedback Blocked . | . . . Robot Schematics Acquired . | . . . Robots Built . | . . . Authchips . | . . . Time . | . . . Total Robot Build Rating . | . . . Part Schematics Acquired . | . . . Parts Built . | . . . Authchips . | . . . Time . | . . . Total Part Build Rating . | . . . Part Studies Acquired . | . . . Parts Repaired . | . . . Time . | . . . Parts Recycled . | . . . Recycled Matter . | . . . Retrieved Matter . | . . . Retrieved Components . | . . . Parts Scanalyzed . | . . . Part Schematics Acquired . | . . . Parts Damaged . | . . . Bothacking | -11 -10 -10 ------------ Run | Yrd Mat Sub Used RIF Installer . | . . . Robots Hacked . | . . . Non-combat . | . . . Combat . | . . . Robot Hacks Applied . | . . . Relay Couplers Released . | . . . Fabnet Peak Effective % . | . . . Robots Rewired . | . . . Allies Hacked . | . . . Hacks Repelled . | . . . Allies | -11 -10 -10 -------- Run | Yrd Mat Sub Total Allies 9 | . . 9 Largest Group 9 | . . 9 Highest-Rated Group 172 | . . 172 Highest-Rated Ally 20 | . . 20 Total Orders . | . . . Ally Attacks 9 | . . 9 Total Damage 304 | . . 304 Kills 2 | . . 2 Allies Corrupted . | . . . Allies Melted . | . . . Intel | -11 -10 -10 ------- Run | Yrd Mat Sub Active Infowar (turns) . | . . . Robot Analysis Total 1 | . 1 . Derelict Logs Recovered . | . . . Drone Launches . | . . . Drone Recoveries . | . . . Exploration | -11 -10 -10 ------------- Run | Yrd Mat Sub Turns Passed 2634 | 70 155 2409 Spaces Moved 1586 | 44 90 1452 Core . | . . . Treads 1155 | . . 1155 Legs 431 | 44 90 297 Wheels . | . . . Hover . | . . . Flight . | . . . Fastest Speed 120 | 120 120 120 Average Speed 149 | 120 120 151 Slowest Speed 160 | 120 120 160 Overloaded Moves . | . . . Propulsion Burnouts . | . . . Robots Hopped . | . . . Potential Cave-ins 2 | . . 2 Cave-ins Triggered . | . . . Exploration Rate (%) 35 | 4 19 84 Regions Visited 2 Branch Regions 1 Pre-discovered Areas . | . . . Known Exits Taken . | . . . Unknown Exits Taken 2 | 1 1 . Scrap Searched 6 | . . 6 Spaces Dug 7 | . . 7 Terrain Destroyed 7 | . . 7 Melee . | . . . Projectile 7 | . . 7 AOE . | . . . Terrain Rammed . | . . . Walls Destroyed . | . . . Machines Disabled . | . . . Actions | -11 -10 -10 --------- Run | Yrd Mat Sub Total 1728 | 50 110 1568 Wait 28 | . . 28 Move 1584 | 43 89 1452 Hop . | . . . Pick Up 9 | 1 1 7 Fast Attach 4 | . 1 3 Attach 4 | . . 4 Detach . | . . . Swap 5 | . 2 3 Drop 15 | . 2 13 Fire 79 | 6 15 58 Melee . | . . . Ram . | . . . Kick . | . . . Crush . | . . . Escape Stasis . | . . . Rewire . | . . . Trap . | . . . Miscellaneous . | . . . Route ------- -11/Scrapyard -10/Materials -10/Subcaves (discovered 2 exits: [*Mat] / [*Scr]) History --------- Turn | Location | Event 1 | -11/Scrapyard | Discovered new exit (range 3) 71 | -11/Scrapyard | Entered Materials 220 | -10/Materials | Discovered new exit (range 6) 226 | -10/Materials | Entered Subcaves 227 | -10/Subcaves | Approached by a straggling Scientist 314 | -10/Subcaves | Build established: Mutant 691 | -10/Subcaves | Core integrity fell below 50% 803 | -10/Subcaves | Ambushed by Subdwellers from Twisted Machinery 1045 | -10/Subcaves | Visited Clippyterm 1049 | -10/Subcaves | Learned Factory fabricator intel 1049 | -10/Subcaves | Learned Factory emergency access door positions 1325 | -10/Subcaves | Visited 4L-MR0's lab 1355 | -10/Subcaves | Found Powered Cannon 1857 | -10/Subcaves | A swath of the cavern ceiling suddenly collapsed 1994 | -10/Subcaves | Discovered new exit (range 7) 2045 | -10/Subcaves | Visited triangular shrine 2055 | -10/Subcaves | Found Prototype Device 2057 | -10/Subcaves | Identified V3-11A's Pendant 2062 | -10/Subcaves | Befriended Subdweller 2219 | -10/Subcaves | A Subdweller sparked back to life 2219 | -10/Subcaves | A Subdweller sparked back to life 2222 | -10/Subcaves | Befriended Subdweller 2222 | -10/Subcaves | Befriended Subdweller 2222 | -10/Subcaves | Befriended Subdweller 2272 | -10/Subcaves | Befriended Subdweller 2277 | -10/Subcaves | Befriended Subdweller 2314 | -10/Subcaves | Shifting Twisted Machinery released Sub. Monowheel 2363 | -10/Subcaves | Shifting Twisted Machinery released Sub. Shrapnel Launcher 2447 | -10/Subcaves | Befriended Subdweller 2527 | -10/Subcaves | Befriended Subdweller 2527 | -10/Subcaves | Befriended Subdweller 2625 | -10/Subcaves | Core integrity fell below 20% 2632 | -10/Subcaves | Ambushed by Subdweller buried in earth 2632 | -10/Subcaves | Ambushed by Subdweller buried in earth 2634 | -10/Subcaves | Ambushed by Subdweller buried in earth 2634 | -10/Subcaves | Ambushed by Subdweller buried in earth 2635 | -10/Subcaves | Destroyed by NS-LKT(R) with Subdweller Shrapnel Launcher Last Messages --------------- 02277_ RP-EMO(R): "MEET&GREET!" 02283_ KV-OPD(R) affixes Scrap Shield Fragment to Scrap Shield. Sub. Monowheel falls loose from the Twisted Machinery. Sub. Shrapnel Launcher falls loose from the Twisted Machinery. 02447_ N6-BW5(R): "HEYA!" 02527_ VM-8DM(R): "SUBSUB?" 02527_ 60-52Q(R): "UGOIGO!" 02624_ Battle Cannon destroyed. 02630_ Critical hit (Burn: +37). 02632_ Y-45 Defender destroyed. 02633_ WA-X4E(R): "NAT20!" 02633_ 2W-8S2(R): "SLEEPOVER!" 02633_ Lgt. Treads destroyed. 02634_ WA-X4E(R) destroyed. 02635_ RT-VK0(R): "ARGHSUB!" 02635_ NS-LKT(R): "ARGHSUB!" 02635_ N6-BW5(R) destroyed. 02635_ 60-52Q(R) destroyed. 02635_ KV-OPD(R) destroyed. 02635_ 6H-G7J(R) destroyed. Map ----- +----------------------------------------------------+ | # ####### #?????????????????????????? | | #### ##?????????????????????????? | | ### ##??????????????????????????? | | ##???????????????????????????? | | #####????????????????????????????? | | ##????????????????????????????????? | | ##????????????????????????????????? | | ##???????????????????????????????? | | [ #???????????????????????????????? | | #???????????????????????????????? | | # ### #???????????????????????????????? | | # ### #####???????????????????????????????? | | # #??????????????????????????????????? | | # ##??????????????????????????????????? | | ##### # #??????????????????#####????????????? | | #???# ## ##?????????????????; ????????????? | | ???## ######???????????????##? ???????????? | | #??# ##??????????????????? # R * ???????????? | | #??# #??????????????????? ]% #??????????? | | #??### ##??????????????????? ! #??????????? | | #### ###???????????????????? % R ??????????? | | ## ###??????????????????# #?????????? | | # # ## #####????????????## R #?????????? | | ## ##### % ##??????????## #???????????? | | # ##???##### #??????????# = ; ????????????? | | ##?????????# #??????????#@& ####???????????????? | | ???????????# #??????????#;%% #??????????????????? | | ???????????# #####??????#;%=;##??????????????????? | | ???????????## #??????#;R ????????????????????? | | ????????????# ##??????# %[ ????????????????????? | | ????????????# #???????#&#?????????????????????? | | ????????????## #???????#R#?????????????????????? | | ????????????# ###??????#R#?????????????????????? | | ????????????## #??????# ##????????????????????? | | ?????????????# ##?????##R######???????????????? | | ???????????### ##?????# #???????????????? | | ??????????## ##????# ##??????????????? | | ??????????# #????## #??????????????? | | ??????????# #####??# #??????????????? | | ??????????# ### #### ##?????????????? | | ??????###### ### ## ##????????????? | | ####?## ### ##???????????? | | ### ## #???????????? | | #### ##???????????? | | #####??####????????????? | | ### ##??????????????????????? | | #?## ## ##??????????????????????? | | ##?## ### #??????????????????????? | | #?## ## ## #??????????????????????? | | ### ### ## #????###???????????????? | +----------------------------------------------------+ Best States ------------- Heat Dissipation 39 Energy Generation 10 Energy Capacity 250 Matter Stores 300 Matter Capacity 300 Sight Range 16 Terrain Scan Density 10 Armor Coverage 100 Evasion (%) 55 Recoil Reduction 2 Item Schematics ----------------- None Robot Schematics ------------------ None Fabricated ------------ Nothing Repaired ---------- Nothing Studied --------- None Alien Tech Used ----------------- None Achievements -------------- None Challenges ------------ None Game ------ Seed HoverTechThermoblaster Manual? 0 Play Time 00:15:31 Cumulative 345.1 hours Start 2026.07.28 @ 20:42:02 End 2026.07.28 @ 20:57:38 Sessions 1 Manual Loads 0 Difficulty Rogue Special Mode None Game No. 428 Rogue 426 Adventurer 2 Explorer 0 Win Type - Total 4 Types 2/0/0/1/1/0/0/0/0/0 Lore% 81 Gallery% 67 Achievement% 62 Wizard Run 0 Options --------- Layout 0 ASCII 0 Keyboard 0 Movement Numpad Keybinds 0 Fullscreen 2 Font 24/Smallcaps Map View 76x50 Zoom Use 3% Tactical HUD 1 Map Filters NONE Filters NONE Steam 1 RUN: d9af2296-4290-4e49-aae9-ca4e683a989a